bitfinex/quotes_BTCUSD_20251226
["timestamp","ask_amount","ask_price","bid_price","bid_amount"]
[1766729269316,0.11293,89055.0,89046.0,0.01123015]
[1766729269511,0.11293,89055.0,89047.0,0.01123002]
[1766729269966,0.06050887,89090.0,88971.0,0.07405696]
[1766729269967,0.01124,89065.0,89040.0,0.39991879]
[1766729270176,0.01124,89065.0,89057.0,0.01800889]
[1766729270368,0.01124,89065.0,89060.0,0.01122838]
[1766729270574,0.01124,89064.0,89061.0,0.01122825]
[1766729270776,0.01124,89063.0,89062.0,0.01122813]
[1766729270998,0.01124,89063.0,89061.0,0.06736902]
[1766729271207,0.01124,89063.0,89061.0,0.01122825]
[1766729271631,0.01124,89063.0,89060.0,0.01122838]
[1766729272036,0.01124,89063.0,89061.0,0.05614129]
[1766729272368,0.01124,89063.0,89060.0,0.01122838]
[1766729272574,0.01124,89063.0,89061.0,0.05614129]
[1766729272846,0.01124,89063.0,89060.0,0.01122838]
[1766729273362,0.01124,89063.0,89059.0,0.05614206]
[1766729273363,0.01124,89063.0,89059.0,0.01122851]
[1766729273566,0.01124,89063.0,89060.0,0.01122838]
[1766729274031,0.1327,89063.0,89060.0,0.01122838]
[1766729274225,0.01124,89063.0,89060.0,0.01122838]
[1766729274453,0.12146,89062.0,89057.0,0.05614357]
[1766729274663,0.12146,89059.0,89053.0,0.12056037]
[1766729274981,0.12146,89059.0,89056.0,0.01800889]
[1766729275177,0.01124,89063.0,89058.0,0.01122863]
[1766729275381,0.01124,89063.0,89059.0,0.01122851]
[1766729276798,0.01124,89063.0,89060.0,0.0673703]
[1766729277479,0.01124,89063.0,89061.0,0.05614067]
[1766729277636,0.1327,89063.0,89061.0,0.05614067]
[1766729277837,0.12146,89063.0,89038.0,0.11345]
[1766729278052,0.01124,89063.0,89051.0,0.11345]
[1766729278290,0.01124,89063.0,89060.0,0.0673699]
[1766729278881,0.01124,89063.0,89060.0,0.01122838]
[1766729279281,0.01124,89063.0,89061.0,0.05614088]
[1766729280496,0.01124,89063.0,89060.0,0.06737028]
[1766729280685,0.01124,89063.0,89061.0,0.05614072]
[1766729280937,0.12146,89067.0,89064.0,0.01122788]
[1766729281082,0.01124,89064.0,89061.0,0.06736897]
[1766729281287,0.12146,89063.0,89060.0,0.06737028]
[1766729281527,0.01124,89064.0,89060.0,0.06737028]
[1766729281835,0.01124,89064.0,89061.0,0.01122825]
[1766729282340,0.01124,89064.0,89061.0,0.06736897]
[1766729282501,0.01124,89064.0,89062.0,0.05614023]
[1766729283601,0.01124,89065.0,89063.0,0.011228]
[1766729283800,0.01124,89065.0,89062.0,2.3e-07]
[1766729284000,0.01124,89065.0,89062.0,0.01122836]
[1766729284938,0.12146,89064.0,89058.0,0.06737128]
[1766729285159,0.01124,89065.0,88981.0,0.05614868]
[1766729285460,0.01124,89065.0,89059.0,0.01122851]
[1766729285798,0.01124,89065.0,89060.0,0.05614148]
[1766729285799,0.12146,89064.0,89060.0,0.05614148]
[1766729286019,0.12146,89064.0,89050.0,0.39991879]
[1766729286265,0.01124,89065.0,89062.0,0.01122813]
[1766729286458,0.01124,89065.0,89061.0,0.01122825]
[1766729286622,0.01124,89065.0,89062.0,0.01122813]
[1766729286820,0.01124,89065.0,89061.0,0.01122825]
[1766729287214,0.01124,89065.0,89062.0,0.01122813]
[1766729287814,0.01124,89065.0,89061.0,0.01122825]
[1766729288366,0.01124,89065.0,89062.0,0.01122813]
[1766729288577,0.01124,89065.0,89061.0,0.01122825]
[1766729288718,0.01124,89065.0,89059.0,0.01122851]
[1766729288918,0.01124,89065.0,89055.0,0.12733028]
[1766729289119,0.01124,89065.0,89055.0,0.06970002]
[1766729289320,0.01124,89067.0,89060.0,0.11345]
[1766729289520,0.01124,89067.0,89060.0,0.112901]
[1766729290656,0.01124,89067.0,89060.0,0.12412938]
[1766729291396,0.01124,89067.0,89060.0,0.112901]
[1766729292664,0.01124,89067.0,89060.0,0.01122838]
[1766729292862,0.01124,89067.0,89061.0,0.11345]
[1766729295703,0.01124,89067.0,89061.0,0.1129]
[1766729298686,0.01124,89067.0,89061.0,0.10166]
[1766729300271,0.01124,89067.0,89052.0,0.01122939]
[1766729300272,0.01122775,89065.0,89052.0,0.01122939]
[1766729300472,0.0673663,89066.0,89052.0,0.01122939]
[1766729300473,0.01122762,89066.0,89052.0,0.01122939]
[1766729300671,0.01122762,89066.0,89053.0,0.01122926]
[1766729301071,0.01122775,89065.0,89052.0,0.13042939]
[1766729301309,0.0224675,89067.0,89053.0,0.13042926]
[1766729301477,0.01124,89067.0,89054.0,0.01122914]
[1766729301675,0.0224675,89067.0,89052.0,0.06737586]
[1766729302010,0.01122762,89066.0,89053.0,0.13042926]
[1766729302214,0.0224675,89067.0,89054.0,0.01122914]
[1766729302637,0.0224675,89067.0,89053.0,0.1192]
[1766729302983,0.01122775,89065.0,89053.0,0.1192]
[1766729304602,0.01122762,89066.0,89053.0,0.13042926]
[1766729304803,0.01122762,89066.0,89053.0,0.01122926]
[1766729305247,0.0224675,89067.0,89054.0,0.01122914]
[1766729305427,0.0224675,89067.0,89053.0,0.01122926]
[1766729305626,0.01124,89067.0,89055.0,0.01122901]
[1766729305826,0.01124,89067.0,89056.0,0.13042888]
[1766729306049,0.01124,89067.0,89056.0,0.1192]
[1766729306230,0.01124,89067.0,89053.0,0.05614573]
[1766729306432,0.01124,89067.0,89055.0,0.01122901]
[1766729307150,0.0224675,89067.0,89053.0,0.01122926]
[1766729307348,0.01124,89067.0,89054.0,0.01122914]
[1766729307548,0.01124,89067.0,89055.0,0.01122901]
[1766729307751,0.01124,89067.0,89054.0,0.01122914]
[1766729307935,0.01124,89067.0,89055.0,0.01122901]
[1766729308137,0.0224675,89067.0,89053.0,0.01122926]
[1766729308521,0.0224675,89067.0,89054.0,0.1192]
[1766729309337,0.01124,89067.0,89055.0,0.1192]
[1766729309983,0.01124,89067.0,89057.0,0.1192]
[1766729312870,0.010691,89067.0,89057.0,0.13042876]
[1766729313071,0.010691,89067.0,89057.0,0.1192]
[1766729313488,0.010691,89067.0,89059.0,0.1192]
[1766729314698,0.0094074,89067.0,89059.0,0.1192]
[1766729317600,0.0206349,89067.0,89059.0,0.1192]
[1766729317770,0.0094074,89067.0,89059.0,0.1192]
[1766729322395,0.01124,89066.0,89056.0,0.13076888]
[1766729322606,4.38e-06,89067.0,89057.0,0.11954]
[1766729322740,4.38e-06,89067.0,89057.0,0.11960438]
[1766729325289,0.01123188,89067.0,89057.0,0.11960438]
[1766729325491,4.38e-06,89067.0,89057.0,0.11960438]
[1766729327603,0.01123188,89067.0,89057.0,0.11960438]
[1766729328119,4.38e-06,89067.0,89057.0,0.11960438]
[1766729328735,0.01123188,89067.0,89057.0,0.11960438]
[1766729328949,4.38e-06,89067.0,89057.0,0.11960438]
[1766729329305,0.02246687,89072.0,89057.0,0.13083314]
[1766729329511,0.01122725,89069.0,89057.0,0.11960438]
[1766729329738,0.0112275,89067.0,89057.0,0.11960438]
[1766729329944,0.0112275,89067.0,89051.0,0.01122952]
[1766729329945,0.00048462,89057.0,89053.0,0.01122926]
[1766729330161,0.00054897,89057.0,89053.0,0.12394]
[1766729330316,6.435e-05,89057.0,89053.0,0.12394]
[1766729331460,3.5e-07,89057.0,89053.0,0.12394]
[1766729331841,3.5e-07,89057.0,89053.0,0.13516926]
[1766729332618,3.5e-07,89057.0,89054.0,0.01122914]
[1766729332787,3.5e-07,89057.0,89055.0,0.12394]
[1766729335089,0.00953829,89066.0,89056.0,0.15317777]
[1766729335295,0.0054109,89066.0,89056.0,0.15317777]
[1766729336041,0.0054109,89066.0,89056.0,0.14194889]
[1766729336600,0.0054109,89066.0,89057.0,0.12394]
[1766729337853,0.0054109,89066.0,89057.0,0.13516876]
[1766729338375,0.0054109,89066.0,89057.0,0.12394]
[1766729339655,0.0054109,89066.0,89057.0,0.13516876]
[1766729340433,0.0054109,89066.0,89059.0,0.12394]
[1766729341508,0.0054109,89066.0,89042.0,0.34855202]
[1766729341713,0.0054109,89066.0,89055.0,0.12394]
[1766729342028,0.0054109,89066.0,89055.0,0.12400435]
[1766729342203,0.0054109,89066.0,89055.0,0.13523336]
[1766729342520,0.0054109,89066.0,89053.0,0.01122926]
[1766729342716,0.00547528,89066.0,89052.0,0.01124]
[1766729343035,0.00547528,89066.0,89053.0,0.01122926]
[1766729343676,0.00547528,89066.0,89054.0,0.01122914]
[1766729344125,0.00547528,89066.0,89055.0,0.01122901]
[1766729344291,0.0012836,89057.0,89055.0,0.01122901]
[1766729344639,0.0007336,89057.0,89055.0,0.01122901]
[1766729344933,3.6e-06,89057.0,89052.0,0.12394]
[1766729345080,3.6e-06,89057.0,89056.0,0.12394]
[1766729347717,3.6e-06,89057.0,89056.0,0.123391]
[1766729348503,3.6e-06,89057.0,89052.0,0.01122939]
[1766729348716,3.6e-06,89057.0,89053.0,4.93e-06]
[1766729348882,3.6e-06,89057.0,89051.0,0.0561472]
[1766729348883,3.6e-06,89057.0,89051.0,1.52e-06]
[1766729349085,3.6e-06,89057.0,89054.0,0.01122914]
[1766729349284,3.6e-06,89057.0,89052.0,0.01122939]
[1766729349867,3.6e-06,89057.0,89053.0,0.01122926]
[1766729350036,3.6e-06,89057.0,89051.0,0.12394]
[1766729350194,3.6e-06,89057.0,89054.0,0.12394]
[1766729351855,3.6e-06,89057.0,89054.0,0.12339]
[1766729362220,3.6e-06,89057.0,89054.0,0.13461914]
[1766729362426,3.6e-06,89057.0,89055.0,0.12335]
[1766729367413,3.6e-06,89057.0,89056.0,0.12335]
[1766729416008,0.02246839,89074.0,89055.0,0.07415342]
[1766729416009,0.01124177,89074.0,89060.0,0.01122838]
[1766729416233,5.809e-05,89074.0,89070.0,0.11723]
[1766729416449,0.01122624,89077.0,89070.0,0.11723]
[1766729416635,0.01122649,89075.0,89070.0,0.11723]
[1766729417097,0.06735636,89079.0,89070.0,0.11723]
[1766729417299,0.01122624,89077.0,89070.0,0.11723]
[1766729417474,0.06735636,89079.0,89070.0,0.11723]
[1766729417710,0.01122611,89078.0,89070.0,0.11723]
[1766729417913,0.01122611,89078.0,89062.0,0.06736847]
[1766729417914,0.05613553,89071.0,89059.0,0.11723]
[1766729418081,0.39981457,89080.0,89059.0,0.11728632]
[1766729418082,0.01122687,89072.0,89059.0,0.11728632]
[1766729418465,0.39981457,89070.0,89059.0,0.12851483]
[1766729418666,0.01122674,89073.0,89059.0,0.11728632]
[1766729418869,0.02246662,89074.0,89059.0,0.12851483]
[1766729419261,0.01124,89074.0,89060.0,0.01122838]
[1766729420165,0.01124,89074.0,89061.0,0.01122825]
[1766729420565,0.01124,89074.0,89062.0,0.01122813]
[1766729420804,0.01124,89074.0,89061.0,0.12845825]
[1766729421362,0.01124,89074.0,89062.0,0.06736879]
[1766729421567,0.01124,89074.0,89063.0,0.11723]
[1766729422139,0.01124,89074.0,89065.0,0.11723]
[1766729428668,0.02246662,89074.0,89065.0,0.11723]
[1766729429078,0.01124,89074.0,89065.0,0.11723]
[1766729443790,0.01122599,89079.0,89074.0,0.001099]
[1766729443987,0.01124,89075.0,89073.0,0.11723]
[1766729444377,0.01124,89075.0,89063.0,0.125268]
[1766729444552,0.01124,89075.0,89065.0,0.11404]
[1766729446772,0.01124,89075.0,89065.0,0.12526775]
[1766729447430,0.01124,89075.0,89065.0,0.11404]
[1766729447612,0.01124,89075.0,89065.0,0.12526775]
[1766729448069,0.01124,89075.0,89065.0,0.11404]
[1766729449936,0.01124,89075.0,89065.0,0.12526775]
[1766729450115,0.01124,89075.0,89065.0,0.11404]
[1766729457287,0.02246649,89075.0,89065.0,0.11404]
[1766729457489,0.01124,89075.0,89065.0,0.11404]
[1766729459884,0.01124,89077.0,89064.0,0.11786]
[1766729460280,0.02246624,89077.0,89064.0,0.11786]
[1766729460963,0.01122636,89076.0,89064.0,0.11786]
[1766729461296,0.02246624,89077.0,89059.0,5.632e-05]
[1766729461297,0.01122737,89068.0,89059.0,5.632e-05]
[1766729461498,0.01122851,89059.0,89052.0,0.11786]
[1766729461699,0.01122863,89058.0,89052.0,0.11786]
[1766729461896,0.06737048,89060.0,89052.0,0.11786]
[1766729462302,0.06737044,89060.0,89042.0,0.08539232]
[1766729462504,0.06737044,89060.0,89045.0,0.1291]
[1766729462505,0.01122863,89058.0,89045.0,0.1291]
[1766729462664,0.01122863,89058.0,89049.0,0.11786]
[1766729463177,0.01122876,89057.0,89049.0,0.11786]
[1766729463378,0.01122863,89058.0,89049.0,0.11786]
[1766729463964,0.01124,89060.0,89049.0,0.11786]
[1766729464210,0.02246838,89060.0,89049.0,0.11786]
[1766729466462,0.01122851,89059.0,89049.0,0.11786]
[1766729466673,0.01122863,89058.0,89049.0,0.11786]
[1766729466871,0.01122851,89059.0,89049.0,0.11786]
[1766729467301,0.02246838,89060.0,89049.0,0.11786]
[1766729468052,0.01122851,89059.0,89049.0,0.11786]
[1766729469770,0.02246838,89060.0,89049.0,0.11786]
[1766729470121,0.01122851,89059.0,89049.0,0.11786]
[1766729470452,0.01124,89060.0,89049.0,0.11786]
[1766729470975,0.01122851,89059.0,89049.0,0.11786]
[1766729472112,0.02246838,89060.0,89049.0,0.11786]
[1766729472341,0.01122863,89058.0,89049.0,0.11786]
[1766729472658,0.01122851,89059.0,89049.0,0.11786]
[1766729473104,0.02246838,89060.0,89049.0,0.11786]
[1766729473679,0.01122876,89057.0,89049.0,0.10242428]
[1766729473871,0.01122851,89059.0,89049.0,0.10242428]
[1766729474167,0.02246838,89060.0,89049.0,0.10242428]
[1766729474577,0.01122851,89059.0,89049.0,0.10242428]
[1766729475183,0.01122863,89058.0,89049.0,0.10242428]
[1766729475338,0.01122876,89057.0,89049.0,0.10242428]
[1766729475744,0.01122863,89058.0,89049.0,0.10242428]
[1766729475931,0.01122876,89057.0,89049.0,0.10242428]
[1766729476674,0.07861066,89060.0,89049.0,0.10242428]
[1766729476876,0.01122851,89059.0,89049.0,0.10242428]
[1766729477116,0.01122863,89058.0,89049.0,0.10242428]
[1766729477317,0.01122876,89057.0,89049.0,0.10242428]
[1766729477672,0.01122863,89058.0,89049.0,0.10242428]
[1766729478104,0.01122901,89055.0,89042.0,0.12147]
[1766729478273,0.01122888,89056.0,89043.0,0.13270052]
[1766729478493,0.01122876,89057.0,89043.0,0.12147]
[1766729478694,0.01122888,89056.0,89043.0,0.13270052]
[1766729479084,0.01122876,89057.0,89043.0,0.01123052]
[1766729479282,0.05614371,89058.0,89044.0,0.12147]
[1766729479599,0.01122876,89057.0,89044.0,0.1327004]
[1766729479795,0.05614255,89059.0,89044.0,0.12147]
[1766729480602,0.05614477,89056.0,89044.0,0.12147]
[1766729481204,0.05614363,89058.0,89044.0,0.12147]
[1766729481411,0.01122901,89055.0,89044.0,0.12147]
[1766729481605,0.01122901,89055.0,89044.0,0.12153438]
[1766729481985,0.01122888,89056.0,89044.0,0.12153438]
[1766729482616,0.06737408,89055.0,89044.0,0.12153438]
[1766729482813,0.01122926,89053.0,89044.0,0.12153438]
[1766729483054,0.01122901,89055.0,89044.0,0.12153438]
[1766729483584,0.01122888,89056.0,89044.0,0.12153438]
[1766729483785,0.01122901,89055.0,89044.0,0.12153438]
[1766729484600,0.01122888,89056.0,89044.0,0.12153438]
[1766729484819,0.01122876,89057.0,89044.0,0.12153438]
[1766729484978,0.01122888,89056.0,89044.0,0.12153438]
[1766729485183,0.05614393,89057.0,89044.0,0.12153438]
[1766729485497,0.01122876,89057.0,89044.0,0.12153438]
[1766729485982,0.01122888,89056.0,89044.0,0.12153438]
[1766729486494,0.01122901,89055.0,89044.0,0.12153438]
[1766729486679,0.06737289,89057.0,89044.0,0.12153438]
[1766729486974,0.01122876,89057.0,89044.0,0.13276478]
[1766729487185,0.01122888,89056.0,89044.0,0.12153438]
[1766729487382,0.01122876,89057.0,89044.0,0.12153438]
[1766729487688,0.01122876,89057.0,89044.0,0.13276478]
[1766729487912,0.01122876,89057.0,89044.0,0.12153438]
[1766729488795,0.01122888,89056.0,89044.0,0.12153438]
[1766729489388,0.01122901,89055.0,89044.0,0.12153438]
[1766729490101,0.01122888,89056.0,89044.0,0.12153438]
[1766729490593,0.41100675,89060.0,89045.0,0.05615102]
[1766729490770,0.10107592,89061.0,89050.0,0.01122964]
[1766729490771,0.01124,89059.0,89050.0,0.01122964]
[1766729490974,0.01124,89059.0,89050.0,0.12147]
[1766729493269,0.02246851,89059.0,89050.0,0.12147]
[1766729493613,0.01124,89059.0,89050.0,0.12147]
[1766729494004,0.02246851,89059.0,89050.0,0.12147]
[1766729494205,0.01124,89059.0,89050.0,0.12147]
[1766729495054,0.02246851,89059.0,89050.0,0.12147]
[1766729495257,0.01124,89059.0,89050.0,0.12147]
[1766729498473,0.02246851,89059.0,89050.0,0.12147]
[1766729498672,0.01124,89059.0,89050.0,0.12147]
[1766729499195,0.02246851,89059.0,89050.0,0.12147]
[1766729499358,0.01124,89059.0,89050.0,0.12147]
[1766729500407,0.02246851,89059.0,89050.0,0.12147]
[1766729501281,0.01124,89059.0,89050.0,0.12147]
[1766729503700,0.01122863,89058.0,89050.0,0.12147]
[1766729503912,0.02246851,89059.0,89050.0,0.12147]
[1766729504879,0.01122863,89058.0,89050.0,0.12147]
[1766729505085,0.01124,89059.0,89050.0,0.12147]
[1766729505267,0.02246851,89059.0,89050.0,0.12147]
[1766729507719,0.01122863,89058.0,89050.0,0.12147]
[1766729507870,0.02246851,89059.0,89050.0,0.12147]
[1766729508065,0.02246851,89059.0,89050.0,0.11147]
[1766729508320,0.01122863,89058.0,89050.0,0.11147]
[1766729508529,0.01124,89059.0,89050.0,0.100779]
[1766729508727,0.01122863,89058.0,89050.0,0.100779]
[1766729508928,0.02246851,89059.0,89050.0,0.100779]
[1766729509139,0.01124,89059.0,89050.0,0.100779]
[1766729509686,0.02246851,89059.0,89050.0,0.100779]
[1766729510181,0.01124,89059.0,89050.0,0.100779]
[1766729511171,0.02246851,89059.0,89050.0,0.100779]
[1766729511574,0.01124,89059.0,89050.0,0.100779]
[1766729512997,0.02246851,89059.0,89050.0,0.100779]
[1766729513380,0.01124,89059.0,89050.0,0.100779]
[1766729513681,0.02246851,89059.0,89050.0,0.100779]
[1766729514299,0.01124,89059.0,89050.0,0.100779]
[1766729515682,0.02246851,89059.0,89050.0,0.100779]
[1766729517261,0.01124,89059.0,89050.0,0.100779]
[1766729521829,0.02246851,89059.0,89050.0,0.100779]
[1766729522122,0.01124,89059.0,89050.0,0.100779]
[1766729522828,0.01122863,89058.0,89044.0,0.01130438]
[1766729522964,0.02246851,89059.0,89044.0,6.438e-05]
[1766729522965,0.000549,89050.0,89044.0,6.438e-05]
[1766729523167,0.05615075,89046.0,89044.0,6.438e-05]
[1766729523512,0.01123065,89042.0,89033.0,0.12762]
[1766729523723,4.021e-05,89042.0,89033.0,0.12762]
[1766729523900,0.01123065,89047.0,89043.0,0.11638]
[1766729524102,0.01124,89050.0,89043.0,0.11638]
[1766729524505,0.01124,89056.0,89045.0,0.01123027]
[1766729524748,0.03370822,89054.0,89046.0,0.11638]
[1766729524947,0.01124,89060.0,89054.0,0.11689]
[1766729525334,0.01124,89060.0,89054.0,0.11638]
[1766729525742,0.011228,89063.0,89054.0,0.11638]
[1766729525743,0.03370621,89063.0,89054.0,0.11638]
[1766729526091,0.01124,89065.0,89056.0,0.11638]
[1766729526203,0.01124,89069.0,89063.0,0.11689]
[1766729526405,0.01124,89069.0,89063.0,0.11638]
[1766729527654,0.01124,89069.0,89063.0,0.11336115]
[1766729527833,0.01124,89069.0,89063.0,0.09217521]
[1766729529222,0.01124,89074.0,89063.0,0.09217521]
[1766729529364,0.01124,89074.0,89069.0,0.11689]
[1766729529563,0.01124,89074.0,89069.0,0.11638]
[1766729531236,0.01073,89074.0,89069.0,0.11638]
[1766729531439,0.0012834,89075.0,89069.0,0.11638]
[1766729533577,0.0012834,89075.0,89069.0,0.105101]
[1766729533749,0.01250989,89075.0,89069.0,0.105101]
[1766729533953,0.01122674,89073.0,89070.0,0.01032727]
[1766729534335,0.01122662,89074.0,89070.0,0.00977727]
[1766729534540,0.01250989,89075.0,89070.0,0.00977727]
[1766729534744,0.01122662,89074.0,89070.0,0.00977727]
[1766729535778,0.0012834,89075.0,89070.0,0.00977727]
[1766729536076,0.01250989,89075.0,89070.0,0.00977727]
[1766729536282,0.0012834,89075.0,89070.0,0.00977727]
[1766729536572,0.01255013,89075.0,89070.0,0.00977727]
[1766729537679,0.01122662,89074.0,89070.0,0.00977727]
[1766729538171,0.01122674,89073.0,89070.0,0.00977727]
[1766729539794,0.06735796,89077.0,89070.0,0.00977727]
[1766729539795,0.0003,89100.0,89074.0,0.11262]
[1766729540082,0.05612561,89086.0,89081.0,0.11262]
[1766729540283,0.01122523,89085.0,89081.0,0.11262]
[1766729540635,0.01122536,89084.0,89081.0,0.11262]
[1766729541036,0.01122523,89085.0,89081.0,0.11262]
[1766729541334,0.01122536,89084.0,89081.0,0.11262]
[1766729541843,0.06735174,89085.0,89081.0,0.11262]
[1766729541844,0.01122523,89085.0,89081.0,0.11262]
[1766729542053,0.00994199,89085.0,89081.0,0.11262]
[1766729542714,0.06770904,89086.0,89081.0,0.11262]
[1766729542882,0.01158343,89086.0,89081.0,0.11262]
[1766729543089,0.00035833,89086.0,89081.0,0.11262]
[1766729543281,0.01122498,89087.0,89086.0,0.00019067]
[1766729543282,0.06734989,89087.0,89086.0,0.00019067]
[1766729543721,0.06734989,89087.0,89081.0,0.11262]
[1766729543722,0.01122536,89084.0,89081.0,0.11262]
[1766729544483,0.01122536,89084.0,89081.0,0.112071]
[1766729544680,0.01122473,89089.0,89026.0,0.1461]
[1766729544681,0.01122599,89079.0,89071.0,0.11096836]
[1766729544939,0.22450332,89086.0,89071.0,0.11096836]
[1766729544940,0.39994317,89081.0,89071.0,0.01124]
[1766729545139,0.01122636,89076.0,89071.0,0.01124]
[1766729545899,0.01122636,89076.0,89063.0,0.03369769]
[1766729545900,0.01122649,89075.0,89063.0,0.03369769]
[1766729546100,0.2,89160.0,89063.0,0.03369769]
[1766729546101,0.22452432,89078.0,89063.0,0.11297833]
[1766729546302,0.01122737,89068.0,89063.0,0.00035833]
[1766729546542,0.01122712,89070.0,89063.0,0.00035833]
[1766729546977,0.01122699,89071.0,89063.0,0.00035833]
[1766729548344,0.01122712,89070.0,89063.0,0.00035833]
[1766729548783,0.01122699,89071.0,89063.0,0.00035833]
[1766729549181,0.01122712,89070.0,89063.0,0.00035833]
[1766729549766,0.01122687,89072.0,89063.0,0.00035833]
[1766729549968,0.01122674,89073.0,89063.0,0.00035833]
[1766729550286,0.01122687,89072.0,89063.0,0.11297833]
[1766729550648,0.01122674,89073.0,89063.0,0.11297833]
[1766729551085,0.01124,89076.0,89073.0,0.000549]
[1766729551242,0.02246636,89076.0,89073.0,0.000549]
[1766729551446,0.02246636,89076.0,89065.0,0.11262]
[1766729551649,0.01122649,89075.0,89065.0,0.11262]
[1766729551874,0.02246636,89076.0,89065.0,0.11262]
[1766729552040,0.01122649,89075.0,89065.0,0.11262]
[1766729552949,0.02246636,89076.0,89065.0,0.11262]
[1766729553102,0.02246636,89076.0,89075.0,0.000549]
[1766729553266,0.01124,89076.0,89075.0,0.000549]
[1766729553470,0.01122624,89077.0,89073.0,0.11262]
[1766729553908,0.01122636,89076.0,89073.0,0.11262]
[1766729554433,0.01122624,89077.0,89076.0,0.000549]
[1766729554606,0.01122599,89079.0,89076.0,0.000549]
[1766729554812,0.01122599,89079.0,89073.0,0.11262]
[1766729554813,0.01124,89080.0,89073.0,0.11262]
[1766729554998,0.01069,89080.0,89073.0,0.11262]
[1766729555454,0.01122561,89082.0,89073.0,0.11262]
[1766729556283,0.01122573,89081.0,89073.0,0.11262]
[1766729556528,0.01122561,89082.0,89073.0,0.11262]
[1766729557851,0.01122573,89081.0,89073.0,0.11262]
[1766729558029,0.01122561,89082.0,89073.0,0.11262]
[1766729558558,0.01122561,89082.0,89070.0,0.39994317]
[1766729558559,0.02424035,89089.0,89071.0,0.11262]
[1766729558757,0.02424035,89089.0,89070.0,0.41117029]
[1766729558758,0.4339417,89100.0,89070.0,0.41117029]
[1766729558759,0.0003,89100.0,89095.0,0.06734329]
[1766729558954,0.0003,89100.0,89095.0,0.12384397]
[1766729559154,0.01122145,89115.0,89096.0,0.11262]
[1766729559352,0.01122208,89110.0,89101.0,0.11262]
[1766729559559,0.01124,89116.0,89100.0,0.39994317]
[1766729559560,0.01122095,89119.0,89111.0,0.11262]
[1766729559716,0.0002,89120.0,89111.0,0.12386]
[1766729559931,0.01152827,89120.0,89111.0,0.12386]
[1766729560134,0.01122095,89119.0,89111.0,0.12386]
[1766729560540,0.01122145,89115.0,89111.0,0.1223626]
[1766729560738,0.06732796,89116.0,89111.0,0.12206301]
[1766729560962,0.00030745,89120.0,89101.0,0.11262]
[1766729561173,0.00030745,89120.0,89100.0,0.43362603]
[1766729561174,0.01122183,89112.0,89103.0,0.11262]
[1766729561408,0.01152827,89120.0,89105.0,0.01122271]
[1766729561559,0.01122107,89118.0,89113.0,0.11262]
[1766729562031,0.06763299,89120.0,89113.0,0.11262]
[1766729562032,0.01122095,89119.0,89113.0,0.11201199]
[1766729562194,0.0112212,89117.0,89113.0,0.11201199]
[1766729562400,0.01122107,89118.0,89113.0,0.11201199]
[1766729562603,0.0112212,89117.0,89113.0,0.09295975]
[1766729562770,0.01122132,89116.0,89113.0,0.09295975]
[1766729563178,0.01122132,89116.0,89111.0,0.01124]
[1766729563179,0.01122183,89112.0,89111.0,0.01124]
[1766729563371,0.01122183,89112.0,89111.0,0.12398]
[1766729563648,0.01122183,89112.0,89110.0,0.01124]
[1766729563929,0.01122195,89111.0,89104.0,0.11274]
[1766729564162,0.01122183,89112.0,89100.0,0.43362603]
[1766729564163,0.01122183,89112.0,89106.0,0.12387]
[1766729564950,0.01122158,89114.0,89106.0,0.12387]
[1766729565344,0.00048733,89107.0,89106.0,0.12387]
[1766729565507,3.3e-07,89107.0,89106.0,0.12387]
[1766729568406,0.00030745,89120.0,89107.0,0.12387]
[1766729568742,0.00030745,89120.0,89105.0,0.01124]
[1766729568743,0.06734082,89126.0,89120.0,0.123932]
[1766729568934,0.01122019,89125.0,89120.0,0.12387]
[1766729569154,0.01122032,89124.0,89120.0,0.12387]
[1766729569304,0.22438672,89132.0,89118.0,0.12387]
[1766729569508,5.4e-07,89127.0,89118.0,0.12387]
[1766729569734,3.2e-07,89124.0,89118.0,0.12387]
[1766729569957,0.01122064,89124.0,89118.0,0.12387]
[1766729570434,0.01122044,89123.0,89118.0,0.12387]
[1766729570812,3.2e-07,89124.0,89118.0,0.12387]
[1766729571217,3.2e-07,89124.0,89120.0,0.01122082]
[1766729571460,0.0002,89137.0,89123.0,0.12387]
[1766729571681,0.01121893,89135.0,89123.0,0.12387]
[1766729571970,0.01121906,89134.0,89125.0,0.12387]
[1766729572170,0.01121893,89135.0,89127.0,0.12387]
[1766729572404,0.01121881,89136.0,89127.0,0.12387]
[1766729572574,0.23560328,89142.0,89126.0,0.01800889]
[1766729572575,0.01121793,89143.0,89136.0,0.12387]
[1766729572958,0.01121818,89141.0,89136.0,0.123383]
[1766729573144,0.01121793,89143.0,89136.0,0.123383]
[1766729573349,0.0112183,89140.0,89136.0,0.123383]
[1766729573553,0.06730807,89143.0,89136.0,0.123383]
[1766729573773,0.01121818,89141.0,89136.0,0.123383]
[1766729573992,0.06750462,89147.0,89136.0,0.123383]
[1766729574179,0.0002,89147.0,89136.0,0.123383]
[1766729574361,0.0112178,89144.0,89135.0,0.12387]
[1766729574553,0.0112178,89144.0,89133.0,0.12387]
[1766729574760,0.06730612,89145.0,89133.0,0.12387]
[1766729575026,0.0002,89147.0,89133.0,0.12387]
[1766729575203,0.0562877,89147.0,89133.0,0.12387]
[1766729575405,0.0112178,89144.0,89132.0,0.01124]
[1766729575621,0.01121805,89142.0,89133.0,0.12387]
[1766729577364,0.01121793,89143.0,89139.0,0.12387]
[1766729577925,0.22433093,89154.0,89133.0,0.12387]
[1766729578125,0.0560876,89147.0,89133.0,0.12387]
[1766729578469,0.01121755,89146.0,89134.0,0.12387]
[1766729578803,0.05608584,89150.0,89136.0,0.12387]
[1766729579006,0.01121717,89149.0,89136.0,0.12387]
[1766729579211,0.01121692,89151.0,89139.0,0.12387]
[1766729579418,0.01121654,89154.0,89139.0,0.12387]
[1766729579419,0.05608382,89153.0,89139.0,0.12387]
[1766729579622,0.01121704,89150.0,89139.0,0.12387]
[1766729579827,0.00024334,89145.0,89139.0,0.13511]
[1766729580205,3.34e-06,89145.0,89139.0,0.13511]
[1766729582415,0.0112178,89144.0,89139.0,0.13511]
[1766729582623,0.0112178,89144.0,89139.0,0.13456]
[1766729582827,0.01121793,89143.0,89139.0,0.13456]
[1766729583149,0.01122101,89145.0,89139.0,0.13456]
[1766729583495,3.34e-06,89145.0,89139.0,0.13456]
[1766729583631,0.0112178,89144.0,89139.0,0.13456]
[1766729584368,0.01122101,89145.0,89139.0,0.13456]
[1766729584369,3.34e-06,89145.0,89139.0,0.13456]
[1766729584600,3.34e-06,89145.0,89144.0,0.000549]